[Event "Late-Titled-Tuesday-Blitz-March-05-2024"]
[Site "Chess.com"]
[Date "2024.03.05"]
[Round "1"]
[White "RantomOpening"]
[Black "WFM_Sara_Adel"]
[Result "1-0"]
[WhiteElo "2571"]
[BlackElo "2192"]
[TimeControl "180+1"]
[EndTime "14:07:57 PST"]
[Termination "RantomOpening won by resignation"]

1. b3 {[%clk 0:02:58.8]} 1... e5 {[%clk 0:02:57.6]} 2. Bb2 {[%clk 0:02:58.2]}
2... Nc6 {[%clk 0:02:58.1]} 3. e3 {[%clk 0:02:58.4]} 3... g6 {[%clk 0:02:58.2]}
4. f4 {[%clk 0:02:53.4]} 4... Bg7 {[%clk 0:02:58.1]} 5. Nf3 {[%clk 0:02:52.5]}
5... d6 {[%clk 0:02:56]} 6. Bb5 {[%clk 0:02:52.2]} 6... Bg4 {[%clk 0:02:53.2]}
7. h3 {[%clk 0:02:51.2]} 7... Bxf3 {[%clk 0:02:52.8]} 8. Qxf3 {[%clk 0:02:52]}
8... Ne7 {[%clk 0:02:18.5]} 9. fxe5 {[%clk 0:02:47.6]} 9... O-O {[%clk
0:02:11.7]} 10. Nc3 {[%clk 0:02:30.4]} 10... Nxe5 {[%clk 0:02:11]} 11. Qf2
{[%clk 0:02:28.1]} 11... Nf5 {[%clk 0:02:10.5]} 12. O-O {[%clk 0:02:27]} 12...
Qg5 {[%clk 0:02:03.2]} 13. Ne4 {[%clk 0:02:22]} 13... Qh6 {[%clk 0:01:59.5]} 14.
d4 {[%clk 0:02:18.9]} 14... Nc6 {[%clk 0:01:50.1]} 15. Rae1 {[%clk 0:02:13.6]}
15... Rae8 {[%clk 0:01:48.3]} 16. Bd3 {[%clk 0:02:07.2]} 16... d5 {[%clk
0:01:48.3]} 17. Nc5 {[%clk 0:02:06.9]} 17... Nxe3 {[%clk 0:01:46.8]} 18. Bc1
{[%clk 0:02:06.3]} 18... Bxd4 {[%clk 0:01:44]} 19. Kh1 {[%clk 0:01:29.3]} 19...
Bxc5 {[%clk 0:01:37]} 20. Qf6 {[%clk 0:01:14.5]} 20... Qg7 {[%clk 0:01:31]} 21.
Qxg7+ {[%clk 0:01:00.5]} 21... Kxg7 {[%clk 0:01:30.7]} 22. Bb2+ {[%clk 0:01:01]}
22... d4 {[%clk 0:01:30.3]} 23. Rf3 {[%clk 0:00:59.6]} 23... f5 {[%clk
0:01:29.6]} 24. Rfxe3 {[%clk 0:00:57.5]} 24... Rxe3 {[%clk 0:01:24.8]} 25. Rxe3
{[%clk 0:00:58.4]} 25... Kf6 {[%clk 0:01:23.1]} 26. Re1 {[%clk 0:00:50.8]} 26...
f4 {[%clk 0:01:21.8]} 27. Re4 {[%clk 0:00:49.7]} 27... g5 {[%clk 0:01:20.3]} 28.
c3 {[%clk 0:00:49]} 28... Rd8 {[%clk 0:01:15.8]} 29. b4 {[%clk 0:00:48]} 29...
Bb6 {[%clk 0:01:14.1]} 30. b5 {[%clk 0:00:47.8]} 30... Ne5 {[%clk 0:01:10.9]}
31. Bb1 {[%clk 0:00:36.7]} 31... c5 {[%clk 0:01:09.8]} 32. bxc6 {[%clk
0:00:35.8]} 32... Nxc6 {[%clk 0:01:09.5]} 33. cxd4 {[%clk 0:00:35.5]} 33... Bxd4
{[%clk 0:01:08.7]} 34. Ba3 {[%clk 0:00:29.9]} 34... Be3 {[%clk 0:01:03]} 35.
Bb2+ {[%clk 0:00:28.5]} 35... Kf7 {[%clk 0:01:01.7]} 36. Bc2 {[%clk 0:00:27.5]}
36... Rd2 {[%clk 0:00:59.5]} 37. Bb3+ {[%clk 0:00:27.8]} 37... Kf8 {[%clk
0:01:00]} 38. Ba3+ {[%clk 0:00:24.8]} 38... Kg7 {[%clk 0:00:56.7]} 39. Bc1
{[%clk 0:00:19.6]} 39... Re2 {[%clk 0:00:56.1]} 40. Bxe3 {[%clk 0:00:15]} 40...
fxe3 {[%clk 0:00:55.8]} 41. Kh2 {[%clk 0:00:11.3]} 41... h5 {[%clk 0:00:53.5]}
42. Kg3 {[%clk 0:00:11.8]} 42... Kf6 {[%clk 0:00:52.1]} 43. Kf3 {[%clk
0:00:12.3]} 43... Rf2+ {[%clk 0:00:51.6]} 44. Kxe3 {[%clk 0:00:12.2]} 44... Rxg2
{[%clk 0:00:52.2]} 45. Re6+ {[%clk 0:00:12.5]} 45... Kf5 {[%clk 0:00:52]} 46.
Rh6 {[%clk 0:00:10.4]} 46... Rg3+ {[%clk 0:00:51.9]} 47. Kf2 {[%clk 0:00:09.7]}
47... Rxh3 {[%clk 0:00:51.8]} 48. Be6+ {[%clk 0:00:10.4]} 48... Kf4 {[%clk
0:00:49.8]} 49. Bxh3 {[%clk 0:00:11.3]} 49... h4 {[%clk 0:00:49.5]} 50. Rf6+
{[%clk 0:00:10.6]} 50... Ke4 {[%clk 0:00:50]} 51. Rf5 {[%clk 0:00:09.9]} 51...
Ne5 {[%clk 0:00:48.9]} 52. Rxg5 {[%clk 0:00:10]} 52... Nd3+ {[%clk 0:00:49.8]}
53. Kg2 {[%clk 0:00:09.1]} 53... Nf4+ {[%clk 0:00:50.4]} 54. Kh2 {[%clk
0:00:09.8]} 54... b5 {[%clk 0:00:50.7]} 55. Rg4 {[%clk 0:00:09.9]} 55... a5
{[%clk 0:00:50.1]} 56. Rxh4 {[%clk 0:00:10.8]} 56... b4 {[%clk 0:00:49.9]} 57.
Bd7 {[%clk 0:00:09.9]} 57... Ke3 {[%clk 0:00:48.6]} 58. Kg3 {[%clk 0:00:09.7]}
58... Nd3 {[%clk 0:00:48.4]} 59. Bb5 {[%clk 0:00:08.1]} 59... Nc1 {[%clk
0:00:48.6]} 60. Bc4 {[%clk 0:00:07.9]} 60... a4 {[%clk 0:00:48.6]} 61. Bf7
{[%clk 0:00:07.9]} 61... b3 {[%clk 0:00:48.7]} 62. axb3 {[%clk 0:00:07.8]} 62...
a3 {[%clk 0:00:47.9]} 63. Ra4 {[%clk 0:00:08.1]} 63... a2 {[%clk 0:00:47.9]} 64.
b4 {[%clk 0:00:07.1]} 64... Ne2+ {[%clk 0:00:48.2]} 65. Kh4 {[%clk 0:00:06.7]}
65... Nc3 {[%clk 0:00:48.5]} 66. Rxa2 {[%clk 0:00:06.5]} 66... Nxa2 {[%clk
0:00:48.7]} 67. Bxa2 {[%clk 0:00:07.4]} 67... Kd4 {[%clk 0:00:48.2]} 68. b5
{[%clk 0:00:08.3]} 68... Kc5 {[%clk 0:00:48.5]} 69. Bc4 {[%clk 0:00:08.6]} 69...
Kb6 {[%clk 0:00:47.4]} 70. Bf1 {[%clk 0:00:09.5]} 70... Kc5 {[%clk 0:00:48.1]}
71. Kg5 {[%clk 0:00:10.1]} 71... Kb6 {[%clk 0:00:49]} 72. Kf4 {[%clk 0:00:11]}
72... Kc5 {[%clk 0:00:49.9]} 73. Ke4 {[%clk 0:00:11.5]} 73... Kb6 {[%clk
0:00:50.8]} 74. Kf5 {[%clk 0:00:12.3]} 74... Kc5 {[%clk 0:00:51.7]} 75. Kf6
{[%clk 0:00:13.2]} 75... Kb6 {[%clk 0:00:52.6]} 76. Ke5 {[%clk 0:00:14.1]} 1-0

[Event "Late-Titled-Tuesday-Blitz-March-05-2024"]
[Site "Chess.com"]
[Date "2024.03.05"]
[Round "1"]
[White "manitodeplomo"]
[Black "GiorgianBarbosa"]
[Result "1-0"]
[WhiteElo "2716"]
[BlackElo "2422"]
[TimeControl "180+1"]
[EndTime "14:08:01 PST"]
[Termination "manitodeplomo won on time"]

1. d4 {[%clk 0:02:53.2]} 1... Nf6 {[%clk 0:02:59.6]} 2. c4 {[%clk 0:02:52.4]}
2... e6 {[%clk 0:03:00.5]} 3. Nf3 {[%clk 0:02:52.2]} 3... d5 {[%clk 0:03:01.4]}
4. Nc3 {[%clk 0:02:52.6]} 4... Be7 {[%clk 0:03:01.5]} 5. Bg5 {[%clk 0:02:52.6]}
5... O-O {[%clk 0:03:01.4]} 6. Qc2 {[%clk 0:02:52.8]} 6... Nbd7 {[%clk 0:02:57]}
7. e3 {[%clk 0:02:46.8]} 7... c6 {[%clk 0:02:49]} 8. O-O-O {[%clk 0:02:44]} 8...
a5 {[%clk 0:02:46.3]} 9. Kb1 {[%clk 0:02:43.2]} 9... dxc4 {[%clk 0:02:36.2]} 10.
Bxc4 {[%clk 0:02:44.1]} 10... b5 {[%clk 0:02:36.2]} 11. Bd3 {[%clk 0:02:44.4]}
11... a4 {[%clk 0:02:27.4]} 12. Bxf6 {[%clk 0:02:42.8]} 12... Nxf6 {[%clk
0:02:25.2]} 13. Ne4 {[%clk 0:02:42.1]} 13... b4 {[%clk 0:01:20.2]} 14. Nxf6+
{[%clk 0:02:38.2]} 14... Bxf6 {[%clk 0:01:17.8]} 15. Qxc6 {[%clk 0:02:38.9]}
15... Bd7 {[%clk 0:01:14.3]} 16. Qe4 {[%clk 0:02:39.2]} 16... g6 {[%clk
0:01:09.5]} 17. h4 {[%clk 0:02:39.1]} 17... h5 {[%clk 0:01:06.9]} 18. g4 {[%clk
0:02:35.3]} 18... b3 {[%clk 0:01:00.4]} 19. a3 {[%clk 0:02:34.1]} 19... Ra5
{[%clk 0:00:44.6]} 20. gxh5 {[%clk 0:02:26.4]} 20... Rxh5 {[%clk 0:00:43.4]} 21.
Rdg1 {[%clk 0:02:27]} 21... Bg7 {[%clk 0:00:37.7]} 22. Ng5 {[%clk 0:02:18.9]}
22... e5 {[%clk 0:00:35.9]} 23. Qd5 {[%clk 0:01:15.2]} 23... Qe8 {[%clk
0:00:34.9]} 24. Bxg6 {[%clk 0:01:10.4]} 24... Bc6 {[%clk 0:00:31.4]} 25. Qc4
{[%clk 0:01:04.6]} 25... Rh6 {[%clk 0:00:14.2]} 26. Be4 {[%clk 0:00:50.7]} 26...
exd4 {[%clk 0:00:13.3]} 27. Bxc6 {[%clk 0:00:47.5]} 27... Rxc6 {[%clk
0:00:14.2]} 28. Qd3 {[%clk 0:00:47.2]} 28... f5 {[%clk 0:00:13.8]} 29. exd4
{[%clk 0:00:37.6]} 29... Rc2 {[%clk 0:00:12.5]} 30. Rc1 {[%clk 0:00:33.8]} 30...
Rxf2 {[%clk 0:00:10.2]} 31. Qc4+ {[%clk 0:00:32.3]} 31... Kh8 {[%clk 0:00:09.9]}
32. Rhe1 {[%clk 0:00:31.6]} 32... Qg6 {[%clk 0:00:09.3]} 33. Qxa4 {[%clk
0:00:29.8]} 33... f4+ {[%clk 0:00:09]} 34. Ka1 {[%clk 0:00:29.9]} 34... Bxd4
{[%clk 0:00:08.4]} 35. Rb1 {[%clk 0:00:27.5]} 35... Qg7 {[%clk 0:00:09.3]} 36.
Qxb3 {[%clk 0:00:26.6]} 36... Ra8 {[%clk 0:00:08.6]} 37. Ne6 {[%clk 0:00:25.5]}
37... Qa7 {[%clk 0:00:07.8]} 38. Nxd4 {[%clk 0:00:19.5]} 38... Qxd4 {[%clk
0:00:08.7]} 39. Rbd1 {[%clk 0:00:18.7]} 39... Rd2 {[%clk 0:00:06.4]} 40. Rxd2
{[%clk 0:00:16.8]} 40... Qxd2 {[%clk 0:00:07.3]} 41. Re7 {[%clk 0:00:14.2]}
41... Rc8 {[%clk 0:00:06.2]} 42. Qf7 {[%clk 0:00:11.9]} 42... Qc1+ {[%clk
0:00:02.7]} 43. Ka2 {[%clk 0:00:12.3]} 43... Qc4+ {[%clk 0:00:03.6]} 44. Qxc4
{[%clk 0:00:12.4]} 44... Rxc4 {[%clk 0:00:03.7]} 45. Rf7 {[%clk 0:00:10.8]}
45... Kg8 {[%clk 0:00:03.5]} 46. Rf5 {[%clk 0:00:11.1]} 46... Kg7 {[%clk
0:00:04.4]} 47. h5 {[%clk 0:00:11.4]} 47... Rd4 {[%clk 0:00:03.5]} 48. b4 {[%clk
0:00:10]} 48... Rd2+ {[%clk 0:00:03]} 49. Kb3 {[%clk 0:00:10.3]} 49... Rd3+
{[%clk 0:00:03.9]} 50. Ka4 {[%clk 0:00:10.3]} 50... f3 {[%clk 0:00:04.5]} 51. b5
{[%clk 0:00:10.2]} 51... Re3 {[%clk 0:00:01.5]} 52. b6 {[%clk 0:00:09.2]} 1-0

[Event "Late-Titled-Tuesday-Blitz-March-05-2024"]
[Site "Chess.com"]
[Date "2024.03.05"]
[Round "1"]
[White "HaryKane"]
[Black "GMthekingindian"]
[Result "1/2-1/2"]
[WhiteElo "2599"]
[BlackElo "2305"]
[TimeControl "180+1"]
[EndTime "14:08:08 PST"]
[Termination "Game drawn by repetition"]

1. d4 {[%clk 0:03:00.2]} 1... d5 {[%clk 0:03:00]} 2. e3 {[%clk 0:02:58.9]} 2...
c6 {[%clk 0:03:00]} 3. f4 {[%clk 0:02:58.7]} 3... Nh6 {[%clk 0:02:54.2]} 4. Nf3
{[%clk 0:02:58.4]} 4... Bf5 {[%clk 0:02:53.5]} 5. Be2 {[%clk 0:02:54.1]} 5... e6
{[%clk 0:02:53.5]} 6. O-O {[%clk 0:02:45.5]} 6... Nd7 {[%clk 0:02:53.4]} 7. Nbd2
{[%clk 0:02:39.8]} 7... Be7 {[%clk 0:02:52.3]} 8. b3 {[%clk 0:02:33.5]} 8... a5
{[%clk 0:02:50.9]} 9. a3 {[%clk 0:02:31.6]} 9... a4 {[%clk 0:02:50.8]} 10. b4
{[%clk 0:02:31.1]} 10... b5 {[%clk 0:02:49.8]} 11. Bd3 {[%clk 0:02:19.5]} 11...
Nf6 {[%clk 0:02:46.4]} 12. Ne5 {[%clk 0:02:14.7]} 12... Qc7 {[%clk 0:02:45.1]}
13. Qe2 {[%clk 0:02:11.3]} 13... Be4 {[%clk 0:02:31.9]} 14. Bxe4 {[%clk
0:02:05]} 14... Nxe4 {[%clk 0:02:24.9]} 15. Nxe4 {[%clk 0:02:04.3]} 15... dxe4
{[%clk 0:02:25.8]} 16. c4 {[%clk 0:02:02.6]} 16... Qb7 {[%clk 0:02:18.6]} 17.
Bb2 {[%clk 0:01:56.6]} 17... O-O {[%clk 0:02:11.2]} 18. Rac1 {[%clk 0:01:55.6]}
18... f6 {[%clk 0:01:49.8]} 19. cxb5 {[%clk 0:01:34.5]} 19... fxe5 {[%clk
0:01:34.9]} 20. bxc6 {[%clk 0:01:34.1]} 20... Qb6 {[%clk 0:01:33]} 21. dxe5
{[%clk 0:01:29.1]} 21... Nf5 {[%clk 0:01:28.2]} 22. Rfe1 {[%clk 0:01:18.5]}
22... Rfc8 {[%clk 0:01:21.4]} 23. g4 {[%clk 0:01:07.4]} 23... Nh4 {[%clk
0:01:18.4]} 24. Bd4 {[%clk 0:01:06.1]} 24... Nf3+ {[%clk 0:00:53.6]} 25. Qxf3
{[%clk 0:01:03.7]} 25... Qxd4 {[%clk 0:00:54.2]} 26. exd4 {[%clk 0:01:03.2]}
26... exf3 {[%clk 0:00:54.8]} 27. f5 {[%clk 0:00:58.7]} 27... Ra6 {[%clk
0:00:47.2]} 28. fxe6 {[%clk 0:00:38.6]} 28... Raxc6 {[%clk 0:00:45]} 29. Rxc6
{[%clk 0:00:37.6]} 29... Rxc6 {[%clk 0:00:45.9]} 30. d5 {[%clk 0:00:36.7]} 30...
Rc2 {[%clk 0:00:45.6]} 31. Rd1 {[%clk 0:00:28.9]} 31... Rg2+ {[%clk 0:00:33.7]}
32. Kh1 {[%clk 0:00:27.2]} 32... Kf8 {[%clk 0:00:16.2]} 33. d6 {[%clk
0:00:25.8]} 33... Bh4 {[%clk 0:00:15.8]} 34. e7+ {[%clk 0:00:18.9]} 34... Bxe7
{[%clk 0:00:12.2]} 35. dxe7+ {[%clk 0:00:18.9]} 35... Kxe7 {[%clk 0:00:13.1]}
36. Rf1 {[%clk 0:00:17.2]} 36... Rxg4 {[%clk 0:00:09.9]} 37. Rxf3 {[%clk
0:00:17.2]} 37... Re4 {[%clk 0:00:10.1]} 38. Rg3 {[%clk 0:00:13.8]} 38... g6
{[%clk 0:00:09.7]} 39. Rh3 {[%clk 0:00:14.1]} 39... h5 {[%clk 0:00:09.1]} 40.
Rg3 {[%clk 0:00:14.5]} 40... Rxe5 {[%clk 0:00:08.3]} 41. Rxg6 {[%clk 0:00:09]}
41... Re3 {[%clk 0:00:08.8]} 42. Rg5 {[%clk 0:00:08.6]} 42... h4 {[%clk
0:00:08.6]} 43. Kg2 {[%clk 0:00:05.9]} 43... h3+ {[%clk 0:00:08.1]} 44. Kf2
{[%clk 0:00:05.3]} 44... Rxa3 {[%clk 0:00:09]} 45. Ra5 {[%clk 0:00:03.7]} 45...
Kd7 {[%clk 0:00:07.6]} 46. Ra6 {[%clk 0:00:03.6]} 46... Kc7 {[%clk 0:00:07.9]}
47. Ra5 {[%clk 0:00:02.2]} 47... Kb6 {[%clk 0:00:08]} 48. Ra8 {[%clk 0:00:02.2]}
48... Kb7 {[%clk 0:00:08.4]} 49. Ra5 {[%clk 0:00:02.2]} 49... Kb6 {[%clk
0:00:08.9]} 50. Ra8 {[%clk 0:00:02.5]} 50... Kb5 {[%clk 0:00:05.4]} 51. Rb8+
{[%clk 0:00:02.9]} 51... Kc6 {[%clk 0:00:05.6]} 52. b5+ {[%clk 0:00:03.8]} 52...
Kc7 {[%clk 0:00:06]} 53. Ra8 {[%clk 0:00:04]} 53... Kb7 {[%clk 0:00:06.1]} 54.
Rh8 {[%clk 0:00:03.5]} 54... Kb6 {[%clk 0:00:06.4]} 55. Rb8+ {[%clk 0:00:03.8]}
55... Kc7 {[%clk 0:00:06.5]} 56. Ra8 {[%clk 0:00:04.1]} 56... Kb7 {[%clk
0:00:06.7]} 57. Ra6 {[%clk 0:00:03.6]} 57... Kc7 {[%clk 0:00:04.6]} 58. Ra8
{[%clk 0:00:02.7]} 1/2-1/2

[Event "Late-Titled-Tuesday-Blitz-March-05-2024"]
[Site "Chess.com"]
[Date "2024.03.05"]
[Round "1"]
[White "Heydarli77"]
[Black "Willhaven3"]
[Result "0-1"]
[WhiteElo "2366"]
[BlackElo "2651"]
[TimeControl "180+1"]
[EndTime "14:08:09 PST"]
[Termination "Willhaven3 won by resignation"]

1. d4 {[%clk 0:02:59.7]} 1... Nf6 {[%clk 0:03:00]} 2. Nf3 {[%clk 0:02:57.5]}
2... e6 {[%clk 0:03:00.2]} 3. g3 {[%clk 0:02:56.9]} 3... d5 {[%clk 0:03:00.3]}
4. Bg2 {[%clk 0:02:55.6]} 4... Be7 {[%clk 0:03:00]} 5. O-O {[%clk 0:02:55.8]}
5... Ne4 {[%clk 0:02:55.6]} 6. c4 {[%clk 0:02:54.4]} 6... f5 {[%clk 0:02:54.9]}
7. b3 {[%clk 0:02:50.5]} 7... Bf6 {[%clk 0:02:53.4]} 8. Qc2 {[%clk 0:02:45.3]}
8... Nc6 {[%clk 0:02:53.3]} 9. Rd1 {[%clk 0:02:40.6]} 9... g5 {[%clk 0:02:42.5]}
10. Bb2 {[%clk 0:02:36]} 10... g4 {[%clk 0:02:35.7]} 11. Ne5 {[%clk 0:02:34.3]}
11... O-O {[%clk 0:02:28.7]} 12. cxd5 {[%clk 0:02:30.3]} 12... exd5 {[%clk
0:02:28.5]} 13. Nxc6 {[%clk 0:02:27.4]} 13... bxc6 {[%clk 0:02:28.2]} 14. Qxc6
{[%clk 0:02:24.6]} 14... Rb8 {[%clk 0:02:28.3]} 15. Nc3 {[%clk 0:02:17.3]} 15...
Bb7 {[%clk 0:02:26.8]} 16. Qa4 {[%clk 0:02:11.4]} 16... a6 {[%clk 0:02:19.3]}
17. e3 {[%clk 0:02:03.4]} 17... Re8 {[%clk 0:02:13.6]} 18. Rac1 {[%clk
0:01:57.8]} 18... c6 {[%clk 0:02:11.9]} 19. Ne2 {[%clk 0:01:50.6]} 19... Qe7
{[%clk 0:02:06.1]} 20. Nf4 {[%clk 0:01:48.7]} 20... a5 {[%clk 0:01:54.2]} 21.
Nd3 {[%clk 0:01:36.9]} 21... Rec8 {[%clk 0:01:26.3]} 22. Qxa5 {[%clk 0:01:33.8]}
22... Ra8 {[%clk 0:01:22]} 23. Qb4 {[%clk 0:01:33.3]} 23... Rxa2 {[%clk
0:01:13.5]} 24. Qxe7 {[%clk 0:01:28]} 24... Bxe7 {[%clk 0:01:14.4]} 25. Ra1
{[%clk 0:01:25.9]} 25... Rca8 {[%clk 0:00:59]} 26. Rxa2 {[%clk 0:01:24.2]} 26...
Rxa2 {[%clk 0:00:59.9]} 27. Ra1 {[%clk 0:01:23]} 27... Rxa1+ {[%clk 0:00:57.4]}
28. Bxa1 {[%clk 0:01:21.9]} 28... Nd2 {[%clk 0:00:58.3]} 29. b4 {[%clk
0:01:17.1]} 29... Ba6 {[%clk 0:00:57]} 30. Nc5 {[%clk 0:01:11.4]} 30... Bb5
{[%clk 0:00:46.4]} 31. Bc3 {[%clk 0:01:10]} 31... Ne4 {[%clk 0:00:42.4]} 32. Be1
{[%clk 0:01:06.3]} 32... Kf7 {[%clk 0:00:41.1]} 33. Bf1 {[%clk 0:01:04.3]} 33...
Ng5 {[%clk 0:00:37]} 34. Bxb5 {[%clk 0:00:59]} 34... cxb5 {[%clk 0:00:37.9]} 35.
Bc3 {[%clk 0:00:54.8]} 35... Ne4 {[%clk 0:00:34.7]} 36. Be1 {[%clk 0:00:52.6]}
36... h5 {[%clk 0:00:32]} 37. Kg2 {[%clk 0:00:50.3]} 37... Ng5 {[%clk
0:00:30.4]} 38. Bc3 {[%clk 0:00:46.5]} 38... Ne4 {[%clk 0:00:29.6]} 39. Be1
{[%clk 0:00:42]} 39... Ng5 {[%clk 0:00:29.5]} 40. Nd3 {[%clk 0:00:39.1]} 40...
Bd6 {[%clk 0:00:25.4]} 41. Bc3 {[%clk 0:00:32.2]} 41... Ne4 {[%clk 0:00:23.6]}
42. Be1 {[%clk 0:00:31.7]} 42... Ng5 {[%clk 0:00:23.6]} 43. Nf4 {[%clk
0:00:24.1]} 43... Bxf4 {[%clk 0:00:22.9]} 44. gxf4 {[%clk 0:00:23.2]} 44... Ne4
{[%clk 0:00:17.6]} 45. f3 {[%clk 0:00:20.4]} 45... Nd6 {[%clk 0:00:17.2]} 46. h3
{[%clk 0:00:20.1]} 46... Kg6 {[%clk 0:00:16.4]} 47. fxg4 {[%clk 0:00:19]} 47...
hxg4 {[%clk 0:00:17.3]} 48. hxg4 {[%clk 0:00:17.8]} 48... fxg4 {[%clk
0:00:17.4]} 49. Bh4 {[%clk 0:00:16.4]} 49... Kf5 {[%clk 0:00:17.4]} 50. Be7
{[%clk 0:00:14.4]} 50... Nc4 {[%clk 0:00:15.9]} 51. Kf2 {[%clk 0:00:14]} 51...
Ke4 {[%clk 0:00:16.1]} 52. Ke2 {[%clk 0:00:13.8]} 52... Nxe3 {[%clk 0:00:16.1]}
53. Bg5 {[%clk 0:00:12.4]} 53... Nf5 {[%clk 0:00:16.1]} 54. Bf6 {[%clk
0:00:09.9]} 54... Nxd4+ {[%clk 0:00:15.3]} 55. Bxd4 {[%clk 0:00:09]} 55... Kxd4
{[%clk 0:00:16.2]} 56. Kf2 {[%clk 0:00:09.1]} 56... Ke4 {[%clk 0:00:16]} 57. Kg3
{[%clk 0:00:08.4]} 57... Kf5 {[%clk 0:00:16.2]} 0-1

[Event "Late-Titled-Tuesday-Blitz-March-05-2024"]
[Site "Chess.com"]
[Date "2024.03.05"]
[Round "1"]
[White "Noki102"]
[Black "BogdanDeac"]
[Result "1-0"]
[WhiteElo "2535"]
[BlackElo "2964"]
[TimeControl "180+1"]
[EndTime "14:08:18 PST"]
[Termination "Noki102 won by resignation"]

1. d4 {[%clk 0:03:00.9]} 1... Nf6 {[%clk 0:02:58.7]} 2. Nf3 {[%clk 0:03:01.3]}
2... g6 {[%clk 0:02:58.4]} 3. g3 {[%clk 0:03:02]} 3... b5 {[%clk 0:02:57.5]} 4.
Bg2 {[%clk 0:03:02.1]} 4... Bb7 {[%clk 0:02:57.7]} 5. O-O {[%clk 0:03:02.5]}
5... Bg7 {[%clk 0:02:58]} 6. a4 {[%clk 0:03:00]} 6... b4 {[%clk 0:02:58]} 7. c4
{[%clk 0:02:59.1]} 7... bxc3 {[%clk 0:02:57.6]} 8. Nxc3 {[%clk 0:02:57.9]} 8...
O-O {[%clk 0:02:56]} 9. Qb3 {[%clk 0:02:53.2]} 9... Qc8 {[%clk 0:02:55.6]} 10.
Rd1 {[%clk 0:02:48.2]} 10... a5 {[%clk 0:02:54.9]} 11. Ne5 {[%clk 0:02:41.1]}
11... Bxg2 {[%clk 0:02:52.3]} 12. Kxg2 {[%clk 0:02:42]} 12... d6 {[%clk
0:02:50.5]} 13. Nc4 {[%clk 0:02:37.2]} 13... Nc6 {[%clk 0:02:50]} 14. Nb5 {[%clk
0:02:34.9]} 14... Qb7 {[%clk 0:02:34.1]} 15. Qf3 {[%clk 0:02:32.2]} 15... d5
{[%clk 0:02:34.1]} 16. Ne5 {[%clk 0:02:29]} 16... Nxe5 {[%clk 0:02:27.6]} 17.
dxe5 {[%clk 0:02:28.5]} 17... Ne4 {[%clk 0:02:28.2]} 18. Bf4 {[%clk 0:02:00.9]}
18... c6 {[%clk 0:02:25.9]} 19. Nc3 {[%clk 0:01:54.3]} 19... Nc5 {[%clk
0:02:22.9]} 20. Qe3 {[%clk 0:01:44.9]} 20... Nb3 {[%clk 0:02:05.2]} 21. Ra3
{[%clk 0:01:33.3]} 21... d4 {[%clk 0:02:03.7]} 22. Qd3 {[%clk 0:01:16]} 22...
c5+ {[%clk 0:01:30.3]} 23. Ne4 {[%clk 0:01:15.8]} 23... Rab8 {[%clk 0:00:53.8]}
24. Qf3 {[%clk 0:01:16]} 24... c4 {[%clk 0:00:49.1]} 25. h4 {[%clk 0:01:02.5]}
25... h5 {[%clk 0:00:31.9]} 26. Nd2 {[%clk 0:00:36.9]} 26... Nxd2 {[%clk
0:00:23.2]} 27. Rxd2 {[%clk 0:00:26.5]} 27... Rfd8 {[%clk 0:00:19.5]} 28. e6
{[%clk 0:00:19.2]} 28... Qxf3+ {[%clk 0:00:18.7]} 29. Kxf3 {[%clk 0:00:20.1]}
29... Rb4 {[%clk 0:00:15.3]} 30. exf7+ {[%clk 0:00:17.5]} 30... Kxf7 {[%clk
0:00:15.5]} 31. Bc7 {[%clk 0:00:14.1]} 31... Ra8 {[%clk 0:00:15.3]} 32. b3
{[%clk 0:00:06.7]} 32... c3 {[%clk 0:00:07.1]} 33. Rc2 {[%clk 0:00:06.2]} 33...
Ke6 {[%clk 0:00:07.2]} 34. Ke4 {[%clk 0:00:06.1]} 34... Kd7 {[%clk 0:00:05.5]}
35. Bf4 {[%clk 0:00:05.3]} 35... Kc6 {[%clk 0:00:05.7]} 36. Kd3 {[%clk
0:00:02.1]} 36... e5 {[%clk 0:00:05.1]} 37. Bg5 {[%clk 0:00:02.1]} 37... Kd5
{[%clk 0:00:05.4]} 38. f3 {[%clk 0:00:02.1]} 38... Rab8 {[%clk 0:00:05.3]} 39.
e4+ {[%clk 0:00:02.5]} 39... Kc6 {[%clk 0:00:05.4]} 40. f4 {[%clk 0:00:02]}
40... Rxb3 {[%clk 0:00:05.8]} 41. Rxb3 {[%clk 0:00:02.3]} 41... Rxb3 {[%clk
0:00:06.7]} 42. fxe5 {[%clk 0:00:02.9]} 42... Bxe5 {[%clk 0:00:06.9]} 43. Bf4
{[%clk 0:00:03]} 43... Bxf4 {[%clk 0:00:07.3]} 44. gxf4 {[%clk 0:00:03.1]} 44...
Rb2 {[%clk 0:00:07.3]} 45. Rxb2 {[%clk 0:00:02.5]} 45... cxb2 {[%clk 0:00:07.7]}
46. Kc2 {[%clk 0:00:03.4]} 46... Kc5 {[%clk 0:00:07.9]} 47. Kxb2 {[%clk
0:00:03.7]} 47... Kb4 {[%clk 0:00:08.2]} 48. e5 {[%clk 0:00:03.7]} 48... Kc5
{[%clk 0:00:08.4]} 49. Kc2 {[%clk 0:00:03.8]} 49... Kd5 {[%clk 0:00:08.3]} 50.
Kd2 {[%clk 0:00:04.4]} 50... Kc5 {[%clk 0:00:08.5]} 51. Kd3 {[%clk 0:00:04.9]}
51... Kd5 {[%clk 0:00:08.9]} 52. Kd2 {[%clk 0:00:05.3]} 52... Kc5 {[%clk
0:00:08.9]} 53. Ke2 {[%clk 0:00:05.8]} 53... Kd5 {[%clk 0:00:08.5]} 54. Kd3
{[%clk 0:00:06.1]} 54... Kc5 {[%clk 0:00:08.8]} 55. Ke4 {[%clk 0:00:05]} 55...
Kc4 {[%clk 0:00:09.2]} 56. e6 {[%clk 0:00:05.4]} 56... d3 {[%clk 0:00:09.9]} 57.
e7 {[%clk 0:00:04.8]} 57... d2 {[%clk 0:00:10.4]} 58. e8=Q {[%clk 0:00:05]}
58... d1=Q {[%clk 0:00:10.8]} 59. Qb5+ {[%clk 0:00:03]} 59... Kc3 {[%clk
0:00:11.1]} 60. Qxa5+ {[%clk 0:00:02.9]} 60... Kb3 {[%clk 0:00:11.6]} 61. Qb5+
{[%clk 0:00:03.5]} 61... Ka3 {[%clk 0:00:12]} 62. Qd3+ {[%clk 0:00:03]} 62...
Qxd3+ {[%clk 0:00:11.1]} 63. Kxd3 {[%clk 0:00:03.9]} 63... Kxa4 {[%clk
0:00:11.7]} 64. Ke4 {[%clk 0:00:04.6]} 64... Kb5 {[%clk 0:00:11.9]} 65. Ke5
{[%clk 0:00:05.3]} 65... Kc4 {[%clk 0:00:12.6]} 66. Kf6 {[%clk 0:00:05.9]} 66...
Kd4 {[%clk 0:00:13.1]} 67. Kxg6 {[%clk 0:00:06.6]} 67... Ke4 {[%clk 0:00:13.7]}
68. f5 {[%clk 0:00:07.5]} 1-0